bitfinex/quotes_ETHUSD_20250222
["timestamp","ask_amount","ask_price","bid_price","bid_amount"]
[1740182952345,3.0,2671.1,2670.4,4.55075]
[1740182952560,0.08206345,2671.0,2670.6,3.74442]
[1740182952763,3.74439,2670.7,2670.3,5.13863326]
[1740182952976,3.74455,2670.6,2670.3,5.13863326]
[1740182953275,0.08197105,2670.5,2670.1,5.13863326]
[1740182953583,3.74479,2670.4,2670.1,5.13863326]
[1740182953731,0.08197105,2670.3,2670.1,5.13863326]
[1740182953933,3.74473,2670.5,2670.1,5.13863326]
[1740182954156,3.82678105,2670.4,2670.1,5.13863326]
[1740182954349,0.08197105,2670.4,2670.1,5.13863326]
[1740182955525,3.74457,2670.6,2670.1,8.88379326]
[1740182955757,3.82667105,2670.5,2670.1,5.13863326]
[1740182956140,0.08197105,2670.5,2670.1,8.88380326]
[1740182956449,3.82659105,2670.5,2670.1,5.13863326]
[1740182956654,7.57129105,2670.5,2670.1,5.13863326]
[1740182956853,3.82659105,2670.5,2670.1,5.13863326]
[1740182957043,3.74477,2670.4,2670.1,5.13863326]
[1740182957244,3.82659105,2670.5,2670.1,5.13863326]
[1740182957530,0.08197105,2670.4,2669.9,5.13863326]
[1740182957725,3.74514,2670.2,2669.9,5.13863326]
[1740182957968,0.86034323,2670.1,2669.9,5.13863326]
[1740182958142,3.74531,2670.0,2669.9,5.13863326]
[1740182958642,3.82695323,2670.0,2669.9,5.13863326]
[1740182960944,3.74575,2669.7,2669.4,5.13863326]
[1740182961162,0.08132383,2669.6,2669.4,5.13863326]
[1740182962244,3.74561,2669.8,2669.4,5.13863326]
[1740182962449,0.08132383,2669.5,2669.4,5.13863326]
[1740182963138,3.82742383,2669.5,2669.1,5.13863326]
[1740182963337,0.7787,2669.4,2668.6,0.7755]
[1740182963663,3.74674,2669.0,2668.6,5.91413326]
[1740182964057,3.82678795,2668.9,2668.6,5.91413326]
[1740182964251,3.74701,2668.8,2668.6,5.13863326]
[1740182964935,0.07992795,2668.7,2668.6,8.88591326]
[1740182965135,0.07992795,2668.7,2668.6,5.13863326]
[1740182965368,3.74672,2669.0,2668.6,5.13863326]
[1740182965688,0.07992795,2668.9,2668.6,5.13863326]
[1740182966187,0.07992795,2668.9,2668.6,8.88590326]
[1740182966357,0.07992795,2668.9,2668.6,5.13863326]
[1740182966881,3.74661,2669.1,2668.6,9.77443159]
[1740182967270,0.07992795,2669.0,2668.6,9.77443159]
[1740182967516,3.82671795,2669.0,2668.6,5.13863326]
[1740182968688,3.74687,2668.9,2668.6,5.13863326]
[1740182968891,3.74707,2668.8,2668.6,5.13863326]
[1740182969387,3.74687,2668.9,2668.6,5.13863326]
[1740182969388,0.07992795,2668.7,2668.6,5.13863326]
[1740182969741,0.07992795,2668.7,2668.4,5.13863326]
[1740182969742,3.82706795,2668.7,2668.4,5.13863326]
[1740182969941,3.74739,2668.6,2668.4,5.13863326]
[1740182970195,0.07938955,2668.5,2668.4,5.13863326]
[1740182971192,3.82680955,2668.5,2668.4,5.13863326]
[1740182971426,3.74771,2668.3,2668.1,5.13863326]
[1740182971585,0.07901093,2668.2,2668.1,5.13863326]
[1740182971787,3.74771,2668.3,2668.1,5.13863326]
[1740182972091,0.07901093,2668.2,2668.1,5.13863326]
[1740182972496,3.74763,2668.4,2668.1,5.13863326]
[1740182972699,0.07901093,2668.2,2668.1,5.13863326]
[1740182972887,3.74763,2668.4,2668.1,5.13863326]
[1740182973087,0.07901093,2668.2,2668.1,5.13863326]
[1740182973623,3.74771,2668.3,2668.1,5.13863326]
[1740182973828,0.07901093,2668.2,2668.1,5.13863326]
[1740182973990,3.74771,2668.3,2668.1,5.13863326]
[1740182974193,0.07901093,2668.2,2668.1,5.13863326]
[1740182974415,3.74757,2668.4,2668.1,5.13863326]
[1740182974725,0.07901093,2668.3,2668.1,5.13863326]
[1740182975423,3.82672093,2668.3,2668.1,5.13863326]
[1740182975768,3.74784,2668.2,2668.1,5.13863326]
[1740182976307,3.82685093,2668.2,2668.1,5.13863326]
[1740182980036,3.82685093,2668.2,2667.5,5.13863326]
[1740182980213,3.74868,2667.6,2667.5,5.13863326]
[1740182980417,3.74901,2667.4,2667.2,5.13863326]
[1740182980879,3.62623586,2668.1,2667.2,5.13863326]
[1740182980880,0.0777399,2667.3,2667.2,5.13863326]
[1740182981083,0.0777399,2667.3,2667.2,9.64398326]
[1740182981381,3.74778,2668.3,2667.8,4.5045]
[1740182981622,0.07425429,2668.2,2667.8,5.89473326]
[1740182981833,3.74778,2668.3,2667.8,5.89473326]
[1740182982129,3.82210429,2668.2,2667.8,5.89473326]
[1740182982331,3.82211429,2668.2,2667.8,5.89473326]
[1740182983610,0.07425429,2668.2,2667.8,9.64312326]
[1740182983811,0.07425429,2668.2,2667.8,7.23390359]
[1740182983987,3.74805,2668.1,2667.8,5.89473326]
[1740182984195,0.07425429,2668.0,2667.8,5.89473326]
[1740182984818,3.74814,2668.0,2667.8,5.89473326]
[1740182985002,0.07425429,2667.9,2667.8,5.89473326]
[1740182986095,3.74787,2668.2,2667.8,5.89473326]
[1740182986302,0.07425429,2667.9,2667.8,5.89473326]
[1740182987002,3.74812,2668.0,2667.8,5.89473326]
[1740182987402,0.07425429,2667.9,2667.8,5.89473326]
[1740182987732,3.74821,2668.0,2667.8,5.13863326]
[1740182987882,0.07425429,2667.9,2667.8,5.13863326]
[1740182988839,0.07425429,2667.9,2667.8,8.88703326]
[1740182988981,3.7478,2668.3,2667.8,5.72837659]
[1740182989181,3.74819,2668.0,2667.8,5.13863326]
[1740182989382,3.74826,2667.9,2667.8,5.13863326]
[1740182989804,3.82263236,2667.9,2667.8,5.13863326]
[1740182990207,4.69556454,2667.9,2667.8,5.13863326]
[1740182990429,4.64293236,2667.9,2667.8,5.13863326]
[1740182990602,3.7485,2667.8,2667.4,5.13863326]
[1740182990807,0.07433861,2667.7,2667.4,5.13863326]
[1740182991023,3.74819,2668.0,2667.5,3.74882]
[1740182991209,0.07433861,2667.9,2667.5,7.49754]
[1740182991502,0.07433861,2667.9,2667.5,3.74872]
[1740182991794,3.82263861,2667.9,2667.5,3.74872]
[1740182992326,3.82263861,2667.9,2667.4,5.85403196]
[1740182992632,3.82260861,2667.9,2667.4,13.35179196]
[1740182992823,0.07433861,2667.9,2667.4,5.85403196]
[1740182993015,3.74805,2668.1,2667.7,3.74847]
[1740182993200,0.07422057,2668.0,2667.8,3.74832]
[1740182993408,3.74756,2668.4,2667.9,3.74826]
[1740182993592,3.82199057,2668.3,2667.8,4.52353]
[1740182994652,3.82199057,2668.3,2667.9,3.74818]
[1740182994653,0.07422057,2668.3,2667.9,3.74818]
[1740182994806,0.07422057,2668.3,2667.8,0.7752]
[1740182995139,0.07422057,2668.3,2667.9,3.74817]
[1740182995455,3.74766,2668.4,2667.9,8.88680326]
[1740182995652,0.07429647,2668.3,2667.9,8.88680326]
[1740182995860,0.07429647,2668.3,2667.9,12.63498326]
[1740182996025,0.07429647,2668.3,2667.9,8.88680326]
[1740182996206,0.07429647,2668.3,2667.9,12.63500326]
[1740182996412,0.07429647,2668.3,2667.9,8.88680326]
[1740182996613,3.74764,2668.4,2667.9,13.69779622]
[1740182996813,0.07439764,2668.3,2667.9,9.94962622]
[1740182997217,3.74763,2668.4,2667.9,13.69780622]
[1740182997419,0.07439764,2668.3,2667.9,9.94962622]
[1740182997758,0.07439764,2668.3,2668.0,3.74812]
[1740182998062,0.07439764,2668.3,2668.0,3.86550193]
[1740182998728,0.07439764,2668.3,2668.1,3.74792]
[1740182999112,3.74743,2668.5,2668.1,3.74792]
[1740182999318,0.07439764,2668.2,2668.1,5.12939782]
[1740182999628,3.74714,2668.7,2668.2,3.74775]
[1740182999959,0.07498784,2668.6,2668.2,3.74775]
[1740183000658,0.07498784,2668.6,2668.2,3.74784]
[1740183000952,0.07498784,2668.6,2668.3,3.74763]
[1740183001729,0.07498784,2668.6,2668.5,3.74742]
[1740183002249,3.74639,2669.3,2668.8,3.74696]
[1740183002456,0.07540928,2669.2,2668.8,3.74696]
[1740183002623,3.74644,2669.2,2668.8,3.74696]
[1740183002831,0.07540928,2669.1,2668.8,3.74696]
[1740183003151,3.74647,2669.2,2668.8,3.74696]
[1740183003459,3.74647,2669.2,2668.7,3.74713]
[1740183003756,0.07540928,2669.1,2668.7,3.74713]
[1740183004159,0.07540928,2669.1,2669.0,3.74672]
[1740183004332,0.07540928,2669.1,2668.9,3.74679]
[1740183004657,3.7463,2669.3,2668.9,3.74679]
[1740183005192,3.74669,2669.1,2668.5,3.74742]
[1740183005361,4.45134919,2668.8,2668.4,5.13863326]
[1740183005517,3.74728,2668.6,2668.4,5.13863326]
[1740183005860,3.74754,2668.5,2668.1,5.13863326]
[1740183006159,0.07575475,2668.4,2668.1,5.13863326]
[1740183006521,0.07575475,2668.4,2668.3,3.7477]
[1740183006736,3.74702,2668.8,2668.3,3.7477]
[1740183006939,0.07575475,2668.4,2668.3,3.7477]
[1740183007142,3.74702,2668.8,2668.3,3.7477]
[1740183007442,0.07575475,2668.7,2668.3,3.7477]
[1740183007620,3.74702,2668.8,2668.3,3.7477]
[1740183007825,3.74737,2668.6,2668.1,10.73555859]
[1740183008029,3.74735,2668.6,2668.1,8.88659326]
[1740183008238,3.74773,2668.3,2668.1,5.13863326]
[1740183008442,0.07536714,2668.2,2668.1,5.13863326]
[1740183008760,3.74775,2668.3,2668.1,5.13863326]
[1740183008947,0.07536714,2668.2,2668.1,5.13863326]
[1740183010656,7.49554,2668.3,2668.1,5.13863326]
[1740183010963,0.07536714,2668.2,2668.1,5.13863326]
[1740183011352,3.74775,2668.3,2667.9,5.13863326]
[1740183011754,0.07536714,2668.2,2667.9,5.13863326]
[1740183011952,3.74826,2667.9,2667.5,5.13863326]
[1740183012139,3.74882,2667.5,2667.1,6.898]
[1740183012337,3.74896,2667.4,2667.1,6.898]
[1740183012796,0.07506371,2667.3,2667.1,6.898]
[1740183012952,3.82424371,2667.3,2667.1,6.898]
[1740183013151,3.74918,2667.3,2667.1,6.898]
[1740183013490,3.0,2667.1,2666.2,5.13863326]
[1740183013650,0.83736014,2667.2,2666.5,3.75018]
[1740183013855,3.80211218,2667.1,2666.3,3.75048]
[1740183014192,3.75003,2666.7,2666.2,5.13863326]
[1740183014688,0.07448675,2666.6,2666.2,5.13863326]
[1740183014883,3.82461675,2666.6,2666.2,5.13863326]
[1740183015193,0.07448675,2666.6,2666.2,5.13863326]
[1740183015774,0.07448675,2666.6,2666.3,3.75049]
[1740183015988,3.74975,2666.9,2666.3,3.75049]
[1740183016480,3.74975,2666.9,2666.2,8.88927326]
[1740183016481,3.74995,2666.7,2666.2,8.88927326]
[1740183016681,3.7499,2666.8,2666.2,8.88927326]
[1740183016988,3.82362335,2666.7,2666.2,5.13863326]
[1740183017195,3.82362335,2666.7,2666.2,8.88925326]
[1740183017389,0.07360335,2666.7,2666.4,3.75031]
[1740183017593,0.07360335,2666.7,2666.3,3.75039]
[1740183017761,3.74989,2666.8,2666.3,3.75039]
[1740183018295,4.51168,2667.2,2666.3,0.96765233]
[1740183018458,4.51164,2667.2,2666.6,3.75007]
[1740183018657,4.51164,2667.2,2666.6,3.75]
[1740183019097,3.0735105,2667.1,2666.6,3.75]
[1740183019596,3.0735105,2667.1,2666.6,3.65]
[1740183020705,6.8229105,2667.1,2666.6,3.65]
[1740183020907,3.0735105,2667.1,2666.6,3.65]
[1740183021907,3.0735105,2667.1,2666.7,3.74991]
[1740183022072,3.0735105,2667.1,2666.6,4.53959]
[1740183022272,3.0735105,2667.1,2666.7,3.74985]
[1740183023482,3.8229105,2667.1,2666.6,4.53959]
[1740183023878,0.0735105,2667.1,2666.9,3.74964]
[1740183024075,3.74906,2667.4,2666.9,3.74964]
[1740183024281,3.07227072,2667.3,2667.1,3.7493]
[1740183024521,0.07227072,2667.3,2666.6,0.7895]
[1740183024687,0.07227072,2667.3,2667.1,3.74927]
[1740183025020,0.8039,2667.9,2667.1,4.53878]
[1740183025202,0.06968721,2667.2,2667.1,9.67741326]
[1740183025520,3.0,2667.8,2667.4,3.7489]
[1740183025978,0.06995757,2667.7,2667.4,3.7489]
[1740183026398,3.0,2667.8,2667.4,3.7489]
[1740183026600,0.06995757,2667.6,2667.4,3.7489]
[1740183026807,0.8039,2667.9,2667.4,3.7489]
[1740183027015,0.06995757,2667.5,2667.3,3.7491]
[1740183027196,3.74847,2667.8,2667.3,3.7491]
[1740183027393,0.06995757,2667.4,2667.3,3.7491]
[1740183027594,0.8039,2667.9,2667.4,3.74885]
[1740183027826,4.55224,2667.9,2667.3,3.7491]
[1740183028154,4.5517,2668.3,2667.8,3.7484]
[1740183028458,3.74715,2668.7,2668.0,7.49624]
[1740183028656,3.74715,2668.7,2668.1,3.74795]
[1740183028958,3.0,2668.7,2668.2,3.74776]
[1740183029259,4.55065,2669.0,2668.0,5.13863326]
[1740183029431,4.55065,2669.0,2668.4,3.74755]
[1740183029759,4.55065,2669.0,2668.6,3.74719]
[1740183029760,0.8039,2669.0,2668.6,3.74719]
[1740183030057,0.8039,2669.0,2668.4,9.67560326]
[1740183030356,0.8039,2669.0,2668.6,3.74718]
[1740183030582,4.55024,2669.3,2668.7,3.74713]
[1740183030724,4.54974,2669.7,2669.0,3.74667]
[1740183030929,3.0,2669.5,2668.9,0.779]
[1740183031162,3.79891218,2669.4,2668.9,0.779]
[1740183031355,3.7464,2669.3,2668.9,0.779]
[1740183031580,3.74628,2669.4,2668.9,4.52577]
[1740183031739,3.74628,2669.4,2668.9,0.779]
[1740183032171,3.74628,2669.4,2668.9,4.52581]
[1740183032387,0.8039,2669.7,2669.0,3.74671]
[1740183032542,3.746,2669.6,2669.0,3.74671]
[1740183032886,3.74602,2669.5,2669.0,3.74671]
[1740183033959,0.15291072,2669.4,2669.0,3.74671]
[1740183034354,0.15291072,2669.4,2668.9,0.779]
[1740183034573,3.89907072,2669.4,2668.9,0.779]
[1740183034884,3.89907072,2669.4,2668.7,5.13863326]
[1740183034885,0.8039,2669.2,2668.7,5.13863326]
[1740183035053,3.747,2668.8,2668.7,5.13863326]
[1740183035258,3.74719,2668.7,2668.4,5.13863326]
[1740183035644,0.15373776,2668.6,2668.4,5.13863326]
[1740183036352,3.74701,2668.8,2668.4,5.13863326]
[1740183036570,0.15373776,2668.5,2668.4,5.13863326]
[1740183036771,3.74723,2668.7,2668.4,5.13863326]
[1740183037076,3.0,2668.4,2667.7,5.13863326]
[1740183037291,0.8291,2668.2,2667.7,5.13863326]
[1740183037495,3.05263218,2668.1,2667.4,5.13863326]
[1740183037786,3.90114894,2668.0,2667.4,5.13863326]
[1740183038077,3.74828,2667.9,2667.4,5.13863326]
[1740183038281,3.74828,2667.9,2667.4,8.88759326]
[1740183038452,0.15302894,2667.8,2667.4,8.88759326]
[1740183038647,0.15302894,2667.8,2667.4,8.88751326]
[1740183038848,3.74812,2668.0,2667.4,8.88751326]
[1740183039079,3.90130894,2667.9,2667.4,8.88751326]
[1740183039406,3.74877,2667.6,2667.4,5.13863326]
[1740183039570,3.74882,2667.5,2667.4,5.13863326]
[1740183039755,3.74914,2667.3,2666.8,5.13863326]
[1740183040253,0.15177951,2667.2,2666.8,8.88840326]
[1740183040490,0.05263218,2667.4,2666.8,5.13863326]
[1740183040793,3.74975,2666.9,2666.5,5.13863326]
[1740183041084,0.15156837,2666.8,2666.5,5.13863326]
[1740183041250,3.90145837,2666.8,2666.5,5.13863326]
[1740183041651,0.15156837,2666.8,2666.1,12.81083326]
[1740183041852,0.15156837,2666.8,2666.4,3.75033]
[1740183042086,0.15156837,2666.8,2666.2,3.75052]
[1740183042295,3.90140837,2666.8,2666.2,3.75052]
[1740183042479,0.05263218,2666.7,2666.2,3.75052]
[1740183042695,0.15083352,2666.6,2666.2,3.75052]
[1740183043059,0.15083352,2666.6,2666.1,12.81083326]
[1740183043254,0.15083352,2666.6,2666.2,3.75054]
[1740183043460,3.80266218,2666.7,2666.1,12.81083326]
[1740183043682,0.15083352,2666.6,2666.1,12.81083326]
[1740183043872,0.15083352,2666.6,2666.1,16.56154326]
[1740183044070,0.15083352,2666.6,2666.1,12.81083326]
[1740183044295,3.75065,2666.2,2666.1,6.901]
[1740183044474,3.90107794,2666.2,2666.1,6.901]
[1740183046898,3.75083,2666.1,2665.6,3.75146]
[1740183047213,0.15008151,2666.0,2665.6,3.75146]
[1740183048580,0.15008151,2666.0,2665.6,3.75142]
[1740183048778,0.15008151,2666.0,2665.6,3.75137]
[1740183049203,3.75081,2666.1,2665.6,3.75137]
[1740183049577,0.20271369,2666.0,2665.6,3.75137]
[1740183050774,3.95376369,2666.0,2665.5,5.13863326]
[1740183051113,3.95376369,2666.0,2665.5,8.89017326]
[1740183052391,3.95372369,2666.0,2665.5,8.89017326]
[1740183054341,3.75121,2665.8,2665.5,5.13863326]
[1740183054527,0.20271369,2666.0,2665.0,8.89093326]
[1740183054528,3.7517,2665.5,2665.0,8.89093326]
[1740183054700,3.80447218,2665.4,2665.0,5.13863326]
[1740183055099,0.14865774,2665.3,2665.0,8.89096326]
[1740183055717,0.05263218,2665.4,2665.0,8.89096326]
[1740183055922,0.1486506,2665.3,2665.1,3.7522]
[1740183056118,0.1486506,2665.3,2665.0,5.13863326]
[1740183056631,3.80447218,2665.4,2665.0,5.13863326]
[1740183056832,0.1486506,2665.2,2665.0,5.13863326]
[1740183057038,4.57057218,2665.4,2665.0,5.13863326]
[1740183057220,0.1486506,2665.1,2665.0,5.13863326]
[1740183057424,4.57057218,2665.4,2665.0,5.13863326]
[1740183057951,0.1486506,2665.3,2665.0,5.13863326]
[1740183058157,0.1486506,2665.3,2665.0,8.89096326]
[1740183059370,0.05263218,2665.2,2665.0,5.13863326]
[1740183059769,0.14786406,2665.1,2665.0,5.13863326]
[1740183060837,0.05263218,2665.3,2665.0,5.13863326]
[1740183061152,0.14783868,2665.2,2665.0,5.13863326]
[1740183061560,3.80458218,2665.3,2665.0,5.13863326]
[1740183061758,0.14783868,2665.1,2665.0,5.13863326]
[1740183061971,3.80458218,2665.3,2665.0,5.13863326]
[1740183062681,0.14783868,2665.2,2665.0,5.13863326]
[1740183063030,0.14783868,2665.1,2665.0,5.13863326]
[1740183063261,0.05263218,2665.3,2665.0,5.13863326]
[1740183063575,0.14783022,2665.2,2665.0,5.13863326]
[1740183063871,0.7661,2665.4,2665.0,5.13863326]
[1740183064073,0.14782176,2665.3,2665.0,5.13863326]
[1740183064249,0.14782176,2665.3,2665.0,8.89087326]
[1740183064582,0.14782176,2665.3,2665.0,5.13863326]
[1740183064750,3.89977176,2665.3,2665.0,5.13863326]
[1740183064952,3.89977176,2665.3,2664.9,3.75247]
[1740183065363,0.05263218,2665.2,2664.8,3.75255]
[1740183065769,0.05263218,2665.2,2664.9,3.75245]
[1740183066276,0.14782176,2665.1,2664.9,3.75245]
[1740183066467,0.14782176,2665.1,2664.8,3.75255]
[1740183066771,0.05263218,2665.1,2664.8,3.75255]
[1740183066980,0.14782176,2665.0,2664.9,3.75242]
[1740183067385,0.05263218,2665.3,2664.9,3.75242]
[1740183067582,0.14782176,2665.0,2664.9,3.75242]
[1740183067759,3.80461218,2665.3,2664.8,3.75255]
[1740183067955,0.14782176,2665.0,2664.8,3.75255]
[1740183068160,0.05263218,2665.1,2664.8,7.50508]
[1740183068362,0.14782176,2664.9,2664.8,7.50508]
[1740183068563,3.80461218,2665.3,2664.8,7.50508]
[1740183068775,0.14782176,2664.9,2664.8,3.75253]
[1740183068969,3.80461218,2665.3,2664.8,3.75253]
[1740183069185,0.05263218,2665.3,2664.9,3.75246]
[1740183069370,3.80457218,2665.3,2664.8,3.75254]
[1740183070191,0.05263218,2665.3,2664.9,3.75246]
[1740183072088,3.80458218,2665.3,2664.8,7.5051]
[1740183072592,0.05263218,2665.3,2664.9,3.75248]
[1740183073212,0.05263218,2665.3,2664.9,3.7524]
[1740183073505,0.05263218,2665.3,2664.9,3.75241]
[1740183074205,0.05263218,2665.3,2664.8,3.75262]
[1740183074385,0.05263218,2665.3,2664.9,3.75246]
[1740183077916,3.80456218,2665.3,2664.8,3.75253]
[1740183078130,0.05263218,2665.3,2664.9,3.75246]
[1740183078928,0.1477033,2665.2,2664.9,3.75246]
[1740183079119,0.05263218,2665.3,2664.9,3.75246]
[1740183079321,0.1477033,2665.2,2664.9,3.75246]
[1740183079520,0.05263218,2665.3,2664.9,3.75246]
[1740183079719,0.1477033,2665.2,2664.9,3.75246]
[1740183080030,0.05263218,2665.3,2664.9,3.75246]
[1740183080240,0.1477033,2665.1,2664.9,3.75246]
[1740183080541,0.1477033,2665.0,2664.9,3.75246]
[1740183080699,0.05263218,2665.3,2664.9,3.75246]
[1740183080901,0.1477033,2665.2,2664.9,3.75246]
[1740183081135,0.05263218,2665.3,2664.9,3.75246]
[1740183081337,0.1477033,2665.2,2664.9,3.75246]
[1740183081547,0.05263218,2665.3,2664.9,3.75246]
[1740183081714,0.1477033,2665.2,2664.9,3.75246]
[1740183081910,0.05263218,2665.3,2664.9,3.75246]
[1740183082115,0.1477033,2665.2,2664.9,3.75246]
[1740183082439,0.05263218,2665.3,2664.9,3.75246]
[1740183082951,0.1477033,2665.2,2665.0,3.75233]
[1740183083295,0.81873218,2665.4,2664.9,3.75247]
[1740183083625,0.1477033,2665.3,2664.9,3.75242]
[1740183084042,0.05263218,2665.2,2664.9,3.75242]
[1740183084332,0.14769483,2665.1,2664.9,3.75242]
[1740183084747,0.05263218,2665.3,2664.9,3.75242]
[1740183084909,0.14769483,2665.0,2664.9,3.75242]
[1740183085111,0.05263218,2665.3,2664.9,3.75242]
[1740183085326,0.14769483,2665.2,2664.9,3.75242]
[1740183085533,0.05263218,2665.3,2664.9,3.75242]
[1740183085738,0.14769483,2665.2,2664.9,3.75242]
[1740183085937,0.05263218,2665.3,2664.9,3.75242]
[1740183086129,0.14769483,2665.2,2664.9,3.75242]
[1740183086441,0.05263218,2665.3,2664.9,3.75242]
[1740183086739,0.05263218,2665.3,2664.9,3.75237]
[1740183086904,0.14769483,2665.2,2664.9,7.50476]
[1740183087101,0.05263218,2665.3,2664.9,3.75237]
[1740183087304,0.8072,2666.0,2665.2,0.8203]
[1740183087656,3.80377218,2665.9,2665.3,3.75186]
[1740183087950,3.0,2665.8,2665.3,3.75186]
[1740183088544,3.0,2665.8,2665.2,4.57235]
[1740183088847,0.8072,2666.8,2666.2,3.75065]
[1740183089090,0.05263218,2666.7,2666.1,3.75073]
[1740183089392,3.75068,2666.2,2665.8,5.13863326]
[1740183089675,3.80331218,2666.2,2665.7,0.8203]
[1740183089841,0.85983218,2666.3,2665.7,4.57163]
[1740183090041,0.8072,2666.3,2665.7,4.57163]
[1740183090498,4.61034218,2666.3,2665.7,4.57163]
[1740183090942,0.8072,2666.3,2665.9,3.75107]
[1740183091145,3.0,2666.5,2665.9,3.75107]
[1740183091842,0.7805,2666.6,2666.0,0.0525154]
[1740183092039,0.7805,2666.8,2666.2,3.75063]
[1740183092445,0.7805,2666.8,2666.3,3.7505]
[1740183092646,8.44701526,2667.0,2666.3,3.7505]
[1740183092961,3.0,2666.9,2666.3,3.7505]
[1740183093172,0.76785969,2666.8,2666.3,3.7505]
[1740183093367,0.05263218,2666.7,2666.2,0.8133]
[1740183093773,0.14331227,2666.6,2666.2,4.56386]
[1740183094268,3.74988,2666.8,2666.2,4.56386]
[1740183094473,0.14331227,2666.7,2666.2,4.56386]
[1740183095000,3.75009,2666.6,2666.2,0.8133]
[1740183095488,0.14331227,2666.5,2666.1,3.75078]
[1740183095699,3.74988,2666.8,2666.1,3.75078]
[1740183095905,3.94599445,2666.7,2666.0,4.56416]
[1740183096091,3.94599445,2666.7,2666.0,8.31498]
[1740183096404,3.94599445,2666.7,2666.1,3.75079]
[1740183098669,3.89336227,2666.7,2666.1,3.75079]
[1740183101005,3.94599445,2666.7,2666.1,3.75079]
[1740183101603,3.75009,2666.6,2666.1,3.75079]
[1740183101782,4.59879218,2666.5,2666.0,3.75092]
[1740183102108,0.14338855,2666.4,2666.0,3.75092]
[1740183103106,0.14338855,2666.4,2666.0,3.75087]
[1740183103446,0.14338855,2666.4,2665.0,10.65625]
[1740183103447,3.63286816,2666.1,2665.5,0.8133]
[1740183103747,0.14337159,2666.0,2665.8,3.75115]
[1740183104043,0.7959,2666.2,2665.9,3.75099]
[1740183104944,0.7959,2666.5,2665.9,3.75099]
[1740183105242,0.7959,2666.5,2666.0,3.75092]
[1740183106246,5.32,2666.7,2666.4,3.75037]
[1740183106450,0.7959,2666.8,2666.4,3.75028]
[1740183106822,0.73939306,2667.2,2666.7,3.74983]
[1740183107022,0.7959,2667.4,2666.5,0.8133]
[1740183107237,0.7959,2667.4,2666.6,5.13863326]
[1740183107238,0.05263218,2667.3,2666.6,5.13863326]
[1740183107435,0.7959,2667.2,2666.6,5.13863326]
[1740183107657,0.05263218,2667.1,2666.6,5.13863326]
[1740183107860,3.74939,2667.1,2666.6,5.13863326]
[1740183108360,0.7959,2667.2,2666.6,5.13863326]
[1740183108562,4.5448,2667.5,2666.7,0.8133]
[1740183108725,0.14416827,2667.1,2666.9,3.74954]
[1740183108925,4.75860446,2667.7,2666.9,5.13863326]
[1740183108926,0.7959,2667.7,2666.9,5.13863326]
[1740183109169,0.7959,2668.2,2667.7,3.74846]
[1740183109566,0.7959,2668.2,2667.8,3.74835]
[1740183110062,8.29089,2668.5,2667.8,4.123135]
[1740183110266,3.63286816,2668.7,2667.8,4.123135]
[1740183110267,3.63286816,2668.7,2668.0,3.74799]
[1740183110598,4.54294,2668.9,2668.2,3.74781]
[1740183110867,6.79963218,2668.8,2668.2,3.74781]
[1740183111054,3.79963218,2668.8,2668.2,3.74781]
[1740183111250,3.79963218,2668.8,2668.2,4.84326781]
[1740183111564,3.79963218,2668.8,2668.2,1.09545781]
[1740183111770,3.747,2668.8,2668.2,4.84327781]
[1740183112274,0.796,2668.9,2668.3,3.7477]
[1740183112571,7.37960816,2669.0,2668.3,3.7477]
[1740183112758,11.12645816,2669.0,2668.4,0.85909778]
[1740183112956,3.74687,2668.9,2668.4,0.85909778]
[1740183113160,3.74693,2668.9,2668.4,0.85909778]
[1740183113532,7.49391,2668.9,2668.2,3.74774]
[1740183113733,3.74693,2668.9,2668.3,3.74765]
[1740183113939,3.74687,2668.9,2668.2,3.74774]
[1740183114139,3.74687,2668.9,2668.3,3.74766]
[1740183114859,3.74687,2668.9,2668.2,3.74774]
[1740183114860,3.0,2669.0,2668.2,3.74774]
[1740183115060,6.74676,2669.0,2668.4,3.74755]
[1740183115262,3.0,2669.0,2668.3,0.96408733]
[1740183115458,0.796,2669.2,2668.7,3.74701]
[1740183115670,0.7935,2669.7,2668.7,4.50851]
[1740183115849,3.74636,2669.3,2668.7,5.90013326]
[1740183116049,3.7461,2669.5,2668.8,0.96474133]
[1740183116362,3.74646,2669.2,2668.8,0.96474133]
[1740183116755,3.74612,2669.5,2668.8,4.71174133]
[1740183117095,3.74611,2669.5,2668.9,3.74677]
[1740183117469,3.74587,2669.6,2668.9,3.74677]
[1740183117682,3.74587,2669.6,2669.0,4.21776113]
[1740183117845,3.74587,2669.6,2669.0,0.47115113]
[1740183118051,3.74609,2669.5,2669.0,0.47115113]
[1740183118272,3.74587,2669.6,2669.0,0.47115113]
[1740183118474,3.74587,2669.6,2669.0,4.21786113]
[1740183118669,7.49184,2669.6,2669.1,0.79646311]
[1740183118895,3.74587,2669.6,2669.1,0.79646311]
[1740183119099,0.05263218,2669.5,2668.8,0.96474133]
[1740183119386,3.7467,2669.1,2668.7,5.90013326]
[1740183119586,3.74693,2668.9,2668.7,5.90013326]
[1740183120405,3.74637,2669.3,2668.7,5.90013326]
[1740183120551,3.74673,2669.0,2668.7,5.90013326]
[1740183120752,0.05263218,2668.9,2668.4,5.90013326]
[1740183120952,0.7935,2669.4,2668.4,0.7615]
[1740183120953,3.74742,2668.5,2668.4,0.7615]
[1740183121156,3.74742,2668.5,2668.2,5.13863326]
[1740183121405,3.74742,2668.5,2668.2,6.63684659]
[1740183121924,3.74763,2668.4,2668.2,6.63684659]
[1740183122126,3.88896763,2668.4,2668.2,5.13863326]
[1740183122280,0.14133763,2668.4,2668.2,5.13863326]
[1740183122480,3.7477,2668.3,2667.8,5.90013326]
[1740183122678,3.74823,2668.0,2667.8,5.13863326]
[1740183122915,3.74798,2668.1,2667.8,5.13863326]
[1740183123424,0.14111774,2668.0,2667.8,5.13863326]
[1740183123808,0.14111774,2668.0,2667.8,7.59726459]
[1740183124529,3.74785,2668.2,2667.8,7.59726459]
[1740183125034,0.14111774,2668.1,2667.8,7.59726459]
[1740183125334,3.88909774,2668.1,2667.8,7.59726459]
[1740183125533,3.88909774,2668.1,2667.8,5.13863326]
[1740183127507,3.74854,2667.7,2667.6,6.899]
[1740183127913,3.88965774,2667.7,2667.6,6.899]
[1740183128137,0.14111774,2667.7,2667.6,6.899]